[Event "*** SCC Grand Prix: Titled Tuesday Blitz"]
[Site "Chess.com"]
[Date "2020.07.07"]
[Round "4"]
[White "Forantes"]
[Black "Herracek"]
[Result "1-0"]
[WhiteElo "2352"]
[BlackElo "2580"]
[TimeControl "180+1"]
[EndTime "10:40:38 PDT"]
[Termination "Forantes won by checkmate"]

1. Nf3 {[%clk 0:03:00.9]} 1... c5 {[%clk 0:03:00]} 2. g3 {[%clk 0:03:00.6]} 2...
Nc6 {[%clk 0:03:00.1]} 3. d4 {[%clk 0:03:00.5]} 3... cxd4 {[%clk 0:02:59.5]} 4.
Nxd4 {[%clk 0:03:01.4]} 4... g6 {[%clk 0:02:59.6]} 5. Bg2 {[%clk 0:03:01.4]}
5... Bg7 {[%clk 0:02:59.6]} 6. Nb3 {[%clk 0:03:01]} 6... a5 {[%clk 0:02:58.8]}
7. a4 {[%clk 0:02:59.6]} 7... d6 {[%clk 0:02:54.6]} 8. O-O {[%clk 0:02:59.5]}
8... Be6 {[%clk 0:02:54.3]} 9. Nc3 {[%clk 0:02:58.3]} 9... Qd7 {[%clk
0:02:54.3]} 10. Nd5 {[%clk 0:02:56.1]} 10... Bxd5 {[%clk 0:02:38.4]} 11. Qxd5
{[%clk 0:02:54.3]} 11... Nf6 {[%clk 0:02:38]} 12. Qb5 {[%clk 0:02:41.8]} 12...
O-O {[%clk 0:02:31.7]} 13. c3 {[%clk 0:02:37.7]} 13... Rfc8 {[%clk 0:02:28.8]}
14. Be3 {[%clk 0:02:31.6]} 14... Ng4 {[%clk 0:02:20.1]} 15. Bb6 {[%clk
0:02:29.7]} 15... Nge5 {[%clk 0:02:17.5]} 16. Nxa5 {[%clk 0:01:58.8]} 16... Nxa5
{[%clk 0:02:15.2]} 17. Bxa5 {[%clk 0:01:58.4]} 17... Qg4 {[%clk 0:01:20]} 18.
Bxb7 {[%clk 0:01:53.3]} 18... Rab8 {[%clk 0:01:19.9]} 19. Bxc8 {[%clk
0:01:49.1]} 19... Qxc8 {[%clk 0:01:19.2]} 20. Bb6 {[%clk 0:01:42.7]} 20... Qh3
{[%clk 0:01:16.9]} 21. f3 {[%clk 0:01:35.3]} 21... Bh6 {[%clk 0:01:11.8]} 22.
Qa6 {[%clk 0:01:07.1]} 22... Nd7 {[%clk 0:00:40.4]} 23. Bf2 {[%clk 0:01:01.5]}
23... Rxb2 {[%clk 0:00:38.2]} 24. Qc8+ {[%clk 0:00:56.2]} 24... Kg7 {[%clk
0:00:38.5]} 25. a5 {[%clk 0:00:39.6]} 25... Rxe2 {[%clk 0:00:37.7]} 26. a6
{[%clk 0:00:39.9]} 26... Be3 {[%clk 0:00:36.4]} 27. a7 {[%clk 0:00:29.7]} 27...
Bxf2+ {[%clk 0:00:20.9]} 28. Rxf2 {[%clk 0:00:29.7]} 28... Rxf2 {[%clk
0:00:21.8]} 29. Kxf2 {[%clk 0:00:29.8]} 29... Qxh2+ {[%clk 0:00:22.1]} 30. Ke3
{[%clk 0:00:29.1]} 30... Qxg3 {[%clk 0:00:10.4]} 31. a8=Q {[%clk 0:00:21.7]}
31... Qe5+ {[%clk 0:00:03.6]} 32. Qe4 {[%clk 0:00:21.1]} 32... Qg5+ {[%clk
0:00:03.8]} 33. Qf4 {[%clk 0:00:15.5]} 33... Qb5 {[%clk 0:00:04]} 34. Qd4+
{[%clk 0:00:12.4]} 34... Ne5 {[%clk 0:00:04.2]} 35. f4 {[%clk 0:00:09.8]} 35...
f6 {[%clk 0:00:04.3]} 36. fxe5 {[%clk 0:00:09.9]} 36... fxe5 {[%clk 0:00:04.8]}
37. Qdc4 {[%clk 0:00:09]} 37... Qb6+ {[%clk 0:00:05.1]} 38. Ke2 {[%clk
0:00:08.9]} 38... Qb2+ {[%clk 0:00:05.4]} 39. Kd3 {[%clk 0:00:06.2]} 39... Qxa1
{[%clk 0:00:06.3]} 40. Q8g8+ {[%clk 0:00:04.7]} 40... Kf6 {[%clk 0:00:06.1]} 41.
Qh4+ {[%clk 0:00:04.9]} 41... g5 {[%clk 0:00:05.9]} 42. Qh6+ {[%clk 0:00:03.9]}
42... Kf5 {[%clk 0:00:05.7]} 43. Qf7+ {[%clk 0:00:03.6]} 43... Kg4 {[%clk
0:00:05.6]} 44. Qhh5+ {[%clk 0:00:04.3]} 44... Kg3 {[%clk 0:00:05.1]} 45. Qff3#
{[%clk 0:00:04.8]} 1-0

[Event "*** SCC Grand Prix: Titled Tuesday Blitz"]
[Site "Chess.com"]
[Date "2020.07.07"]
[Round "4"]
[White "Shushik"]
[Black "Tsyhanchuk_Stanislav"]
[Result "0-1"]
[WhiteElo "2203"]
[BlackElo "2412"]
[TimeControl "180+1"]
[EndTime "10:40:38 PDT"]
[Termination "Tsyhanchuk_Stanislav won by resignation"]

1. e4 {[%clk 0:03:00.9]} 1... c5 {[%clk 0:02:54.4]} 2. Nf3 {[%clk 0:02:50]} 2...
Nc6 {[%clk 0:02:50.3]} 3. d4 {[%clk 0:02:49.9]} 3... cxd4 {[%clk 0:02:49.9]} 4.
Nxd4 {[%clk 0:02:50.1]} 4... Qb6 {[%clk 0:02:49.3]} 5. Nb3 {[%clk 0:02:47.7]}
5... Nf6 {[%clk 0:02:47.5]} 6. Nc3 {[%clk 0:02:47.2]} 6... e6 {[%clk 0:02:47.7]}
7. Be3 {[%clk 0:02:46.7]} 7... Qc7 {[%clk 0:02:47.3]} 8. f3 {[%clk 0:02:42.9]}
8... Bb4 {[%clk 0:02:39.7]} 9. a3 {[%clk 0:02:41.4]} 9... Bxc3+ {[%clk
0:02:37.5]} 10. bxc3 {[%clk 0:02:41.4]} 10... d5 {[%clk 0:02:38.4]} 11. Bd3
{[%clk 0:02:31.8]} 11... Ne5 {[%clk 0:02:32.7]} 12. O-O {[%clk 0:02:22.8]} 12...
Qxc3 {[%clk 0:02:25.5]} 13. Bd4 {[%clk 0:02:14.4]} 13... Qc7 {[%clk 0:02:24.9]}
14. Bxe5 {[%clk 0:02:08.7]} 14... Qxe5 {[%clk 0:02:25.8]} 15. f4 {[%clk
0:02:08.6]} 15... Qc7 {[%clk 0:02:24.9]} 16. e5 {[%clk 0:02:08.5]} 16... Ne4
{[%clk 0:02:24.2]} 17. Qf3 {[%clk 0:02:05.5]} 17... f5 {[%clk 0:01:57.2]} 18.
exf6 {[%clk 0:01:58]} 18... Nxf6 {[%clk 0:01:55.6]} 19. Rae1 {[%clk 0:01:49.7]}
19... O-O {[%clk 0:01:54.1]} 20. Re5 {[%clk 0:01:45]} 20... Bd7 {[%clk
0:01:47.1]} 21. Qg3 {[%clk 0:01:30.4]} 21... Rae8 {[%clk 0:01:11.6]} 22. Nd4
{[%clk 0:01:10.8]} 22... Qc5 {[%clk 0:01:10.1]} 23. c3 {[%clk 0:01:06.4]} 23...
Kh8 {[%clk 0:00:57]} 24. Rg5 {[%clk 0:00:46.7]} 24... Rf7 {[%clk 0:00:40.1]} 25.
Kh1 {[%clk 0:00:33.6]} 25... Qxc3 {[%clk 0:00:38.6]} 26. Ne2 {[%clk 0:00:32.9]}
26... Qxa3 {[%clk 0:00:36.3]} 27. Nd4 {[%clk 0:00:28.8]} 27... Qc5 {[%clk
0:00:30.6]} 28. Nf3 {[%clk 0:00:26.7]} 28... Bb5 {[%clk 0:00:16.6]} 29. Ne5
{[%clk 0:00:24.8]} 29... Rfe7 {[%clk 0:00:17.2]} 30. Bxb5 {[%clk 0:00:19.4]}
30... Qxb5 {[%clk 0:00:18.1]} 31. Rg1 {[%clk 0:00:17.6]} 31... Ne4 {[%clk
0:00:16.5]} 32. Qh4 {[%clk 0:00:16.4]} 32... Qe2 {[%clk 0:00:15.8]} 33. Ng6+
{[%clk 0:00:14.3]} 33... Kg8 {[%clk 0:00:15.4]} 34. Nxe7+ {[%clk 0:00:14]} 34...
Rxe7 {[%clk 0:00:16.3]} 35. Rxg7+ {[%clk 0:00:11.2]} 35... Rxg7 {[%clk
0:00:14.7]} 36. Qd8+ {[%clk 0:00:11.5]} 36... Kf7 {[%clk 0:00:14.9]} 37. Qd7+
{[%clk 0:00:11.5]} 37... Kf6 {[%clk 0:00:14.3]} 38. Qd8+ {[%clk 0:00:11.5]}
38... Kg6 {[%clk 0:00:14.2]} 39. Qe8+ {[%clk 0:00:11.5]} 39... Kh6 {[%clk
0:00:13.4]} 40. Qxe6+ {[%clk 0:00:11.4]} 40... Rg6 {[%clk 0:00:13.7]} 41. Qh3+
{[%clk 0:00:10.5]} 41... Kg7 {[%clk 0:00:14]} 42. Qd7+ {[%clk 0:00:09.8]} 42...
Kg8 {[%clk 0:00:12.6]} 43. Qe8+ {[%clk 0:00:09.3]} 43... Kg7 {[%clk 0:00:12.4]}
44. Qe7+ {[%clk 0:00:09.6]} 44... Kh6 {[%clk 0:00:12.9]} 45. Qh4+ {[%clk
0:00:09.7]} 45... Qh5 {[%clk 0:00:13.5]} 46. Qe1 {[%clk 0:00:06.7]} 46... Ng3+
{[%clk 0:00:12.7]} 0-1

[Event "*** SCC Grand Prix: Titled Tuesday Blitz"]
[Site "Chess.com"]
[Date "2020.07.07"]
[Round "4"]
[White "RitvarsReimanis"]
[Black "jaskol95"]
[Result "1/2-1/2"]
[WhiteElo "2564"]
[BlackElo "2391"]
[TimeControl "180+1"]
[EndTime "10:40:39 PDT"]
[Termination "Game drawn - timeout vs insufficient material"]

1. d4 {[%clk 0:03:00.2]} 1... Nf6 {[%clk 0:02:58.2]} 2. c4 {[%clk 0:02:54.9]}
2... g6 {[%clk 0:02:58.2]} 3. Nf3 {[%clk 0:02:53.4]} 3... Bg7 {[%clk 0:02:58.4]}
4. Nc3 {[%clk 0:02:52.6]} 4... d5 {[%clk 0:02:58.8]} 5. cxd5 {[%clk 0:02:51.9]}
5... Nxd5 {[%clk 0:02:59.7]} 6. e4 {[%clk 0:02:51.7]} 6... Nxc3 {[%clk
0:02:59.7]} 7. bxc3 {[%clk 0:02:51.3]} 7... c5 {[%clk 0:03:00.1]} 8. Be3 {[%clk
0:02:48.4]} 8... O-O {[%clk 0:02:57.7]} 9. Qd2 {[%clk 0:02:48.4]} 9... Nc6
{[%clk 0:02:44.2]} 10. Rc1 {[%clk 0:02:45.8]} 10... Qa5 {[%clk 0:02:17.7]} 11.
d5 {[%clk 0:02:37.4]} 11... Ne5 {[%clk 0:02:16.5]} 12. Nxe5 {[%clk 0:02:34.6]}
12... Bxe5 {[%clk 0:02:17.4]} 13. f4 {[%clk 0:02:17.7]} 13... Bg7 {[%clk
0:02:15.3]} 14. Be2 {[%clk 0:02:14.9]} 14... Bd7 {[%clk 0:02:07.5]} 15. O-O
{[%clk 0:02:12.4]} 15... e6 {[%clk 0:01:55.2]} 16. c4 {[%clk 0:01:58.6]} 16...
Qxd2 {[%clk 0:01:54.4]} 17. Bxd2 {[%clk 0:01:59.5]} 17... exd5 {[%clk
0:01:52.8]} 18. cxd5 {[%clk 0:01:58.4]} 18... b5 {[%clk 0:01:50.1]} 19. e5
{[%clk 0:01:57.1]} 19... c4 {[%clk 0:01:46.6]} 20. Ba5 {[%clk 0:01:40]} 20... h5
{[%clk 0:01:40.7]} 21. h3 {[%clk 0:01:36.3]} 21... h4 {[%clk 0:01:26.1]} 22. Be1
{[%clk 0:01:32.6]} 22... g5 {[%clk 0:01:26.1]} 23. Bf3 {[%clk 0:01:14.2]} 23...
gxf4 {[%clk 0:01:19.8]} 24. e6 {[%clk 0:01:13.4]} 24... fxe6 {[%clk 0:01:14.5]}
25. dxe6 {[%clk 0:01:14.3]} 25... Bd4+ {[%clk 0:01:11]} 26. Kh1 {[%clk
0:01:12.6]} 26... Bxe6 {[%clk 0:01:10.4]} 27. Bxa8 {[%clk 0:01:04.2]} 27... Rxa8
{[%clk 0:00:57.3]} 28. Rd1 {[%clk 0:01:03]} 28... Be3 {[%clk 0:00:55.3]} 29. Bf2
{[%clk 0:00:54.1]} 29... c3 {[%clk 0:00:49]} 30. Bxe3 {[%clk 0:00:50.7]} 30...
fxe3 {[%clk 0:00:48.4]} 31. Rc1 {[%clk 0:00:49.3]} 31... e2 {[%clk 0:00:20.6]}
32. Rfe1 {[%clk 0:00:45.3]} 32... Bc4 {[%clk 0:00:21]} 33. Rxc3 {[%clk
0:00:44.2]} 33... Rf8 {[%clk 0:00:18.5]} 34. Kh2 {[%clk 0:00:39.9]} 34... Rf1
{[%clk 0:00:16.8]} 35. Rxc4 {[%clk 0:00:23.5]} 35... Rxe1 {[%clk 0:00:11.7]} 36.
Re4 {[%clk 0:00:24]} 36... a5 {[%clk 0:00:10.4]} 37. g3 {[%clk 0:00:22]} 37...
b4 {[%clk 0:00:07.7]} 38. Kg2 {[%clk 0:00:11.1]} 38... hxg3 {[%clk 0:00:07.9]}
39. Kxg3 {[%clk 0:00:10.8]} 39... Rg1+ {[%clk 0:00:08]} 40. Kf2 {[%clk
0:00:11.2]} 40... e1=Q+ {[%clk 0:00:07.9]} 41. Rxe1 {[%clk 0:00:11.1]} 41...
Rxe1 {[%clk 0:00:08.2]} 42. Kxe1 {[%clk 0:00:12]} 42... Kf7 {[%clk 0:00:08.7]}
43. Kd2 {[%clk 0:00:11.4]} 43... a4 {[%clk 0:00:08.8]} 44. Kd3 {[%clk
0:00:10.6]} 44... Ke6 {[%clk 0:00:07.5]} 45. Kc4 {[%clk 0:00:07.7]} 45... b3
{[%clk 0:00:07.9]} 46. axb3 {[%clk 0:00:07.5]} 46... axb3 {[%clk 0:00:04.6]} 47.
Kxb3 {[%clk 0:00:07.3]} 47... Kf5 {[%clk 0:00:05.2]} 48. Kc3 {[%clk 0:00:07.5]}
48... Kg5 {[%clk 0:00:05.8]} 1/2-1/2

[Event "*** SCC Grand Prix: Titled Tuesday Blitz"]
[Site "Chess.com"]
[Date "2020.07.07"]
[Round "4"]
[White "aljado"]
[Black "malandragem"]
[Result "0-1"]
[WhiteElo "2107"]
[BlackElo "2388"]
[TimeControl "180+1"]
[EndTime "10:40:42 PDT"]
[Termination "malandragem won on time"]

1. e4 {[%clk 0:03:00.3]} 1... c5 {[%clk 0:02:58]} 2. Nf3 {[%clk 0:02:58.8]} 2...
d6 {[%clk 0:02:58.3]} 3. c3 {[%clk 0:02:57]} 3... Nf6 {[%clk 0:02:58.4]} 4. Bc4
{[%clk 0:02:56.8]} 4... e6 {[%clk 0:02:54.1]} 5. Qe2 {[%clk 0:02:55.6]} 5... Be7
{[%clk 0:02:53.2]} 6. d4 {[%clk 0:02:55.2]} 6... cxd4 {[%clk 0:02:53]} 7. cxd4
{[%clk 0:02:54.2]} 7... d5 {[%clk 0:02:53.5]} 8. exd5 {[%clk 0:02:52.6]} 8...
Nxd5 {[%clk 0:02:51.3]} 9. O-O {[%clk 0:02:50.7]} 9... O-O {[%clk 0:02:51.5]}
10. Nc3 {[%clk 0:02:50.3]} 10... Bf6 {[%clk 0:02:49.1]} 11. Re1 {[%clk
0:02:46.2]} 11... Nc6 {[%clk 0:02:48.8]} 12. a3 {[%clk 0:02:39.5]} 12... b6
{[%clk 0:02:11.9]} 13. Ne4 {[%clk 0:02:23.6]} 13... Bb7 {[%clk 0:01:58.7]} 14.
Nxf6+ {[%clk 0:02:10.7]} 14... Qxf6 {[%clk 0:01:49.4]} 15. Bg5 {[%clk
0:02:07.8]} 15... Nxd4 {[%clk 0:01:37.8]} 16. Bxf6 {[%clk 0:01:59.8]} 16...
Nxe2+ {[%clk 0:01:37.6]} 17. Rxe2 {[%clk 0:01:56.2]} 17... Nxf6 {[%clk
0:01:37.6]} 18. Ne5 {[%clk 0:01:49]} 18... Rfd8 {[%clk 0:01:36.2]} 19. Rc1
{[%clk 0:01:41.1]} 19... Bd5 {[%clk 0:01:27.3]} 20. Bb5 {[%clk 0:01:32.8]} 20...
Rac8 {[%clk 0:01:18.9]} 21. Rec2 {[%clk 0:01:29.5]} 21... Rxc2 {[%clk
0:01:18.1]} 22. Rxc2 {[%clk 0:01:29.1]} 22... Bb7 {[%clk 0:00:45.9]} 23. Be2
{[%clk 0:01:10.4]} 23... Ne8 {[%clk 0:00:36.8]} 24. h3 {[%clk 0:01:05.8]} 24...
f6 {[%clk 0:00:37.1]} 25. Nd3 {[%clk 0:01:00.6]} 25... e5 {[%clk 0:00:37.1]} 26.
Nb4 {[%clk 0:00:57.4]} 26... Nd6 {[%clk 0:00:29.2]} 27. Nc6 {[%clk 0:00:55.7]}
27... Bxc6 {[%clk 0:00:27.1]} 28. Rxc6 {[%clk 0:00:54.9]} 28... Rd7 {[%clk
0:00:19.2]} 29. Kh2 {[%clk 0:00:41.5]} 29... Kf8 {[%clk 0:00:19.1]} 30. Kg3
{[%clk 0:00:36.3]} 30... Ke7 {[%clk 0:00:19.4]} 31. b4 {[%clk 0:00:32.5]} 31...
g6 {[%clk 0:00:19.5]} 32. Kf3 {[%clk 0:00:29.6]} 32... f5 {[%clk 0:00:19.6]} 33.
h4 {[%clk 0:00:24]} 33... h6 {[%clk 0:00:18.6]} 34. g4 {[%clk 0:00:20.5]} 34...
f4 {[%clk 0:00:16]} 35. Bd3 {[%clk 0:00:18.3]} 35... g5 {[%clk 0:00:15.8]} 36.
h5 {[%clk 0:00:16.8]} 36... e4+ {[%clk 0:00:04.4]} 37. Bxe4 {[%clk 0:00:15.8]}
37... Nxe4 {[%clk 0:00:04.6]} 38. Kxe4 {[%clk 0:00:15.8]} 38... Rd2 {[%clk
0:00:05.5]} 39. Rxh6 {[%clk 0:00:14.2]} 39... Rxf2 {[%clk 0:00:05.9]} 40. Rh7+
{[%clk 0:00:13]} 40... Kf6 {[%clk 0:00:05.9]} 41. Rxa7 {[%clk 0:00:11.7]} 41...
Re2+ {[%clk 0:00:04.1]} 42. Kf3 {[%clk 0:00:11]} 42... Re3+ {[%clk 0:00:04.5]}
43. Kf2 {[%clk 0:00:10.3]} 43... Rg3 {[%clk 0:00:04.6]} 44. h6 {[%clk
0:00:06.5]} 44... Rxg4 {[%clk 0:00:04.7]} 45. h7 {[%clk 0:00:05.8]} 45... Rh4
{[%clk 0:00:05.2]} 46. Rb7 {[%clk 0:00:05.4]} 46... g4 {[%clk 0:00:05.2]} 47.
Rxb6+ {[%clk 0:00:03.9]} 47... Kf5 {[%clk 0:00:05.7]} 0-1

[Event "*** SCC Grand Prix: Titled Tuesday Blitz"]
[Site "Chess.com"]
[Date "2020.07.07"]
[Round "4"]
[White "Ati1517"]
[Black "MoreChessJulia"]
[Result "1-0"]
[WhiteElo "2369"]
[BlackElo "1827"]
[TimeControl "180+1"]
[EndTime "10:40:42 PDT"]
[Termination "Ati1517 won by resignation"]

1. d4 {[%clk 0:03:00.9]} 1... g6 {[%clk 0:02:59.7]} 2. c4 {[%clk 0:03:00.8]}
2... Bg7 {[%clk 0:02:59.6]} 3. Nf3 {[%clk 0:03:00]} 3... c5 {[%clk 0:02:59.4]}
4. d5 {[%clk 0:02:58.9]} 4... d6 {[%clk 0:02:59.3]} 5. Nc3 {[%clk 0:02:56]} 5...
Bg4 {[%clk 0:02:58.5]} 6. e4 {[%clk 0:02:51]} 6... Nd7 {[%clk 0:02:57.6]} 7. Bf4
{[%clk 0:02:46.2]} 7... Ngf6 {[%clk 0:02:49.8]} 8. h3 {[%clk 0:02:37.9]} 8...
Bxf3 {[%clk 0:02:49.3]} 9. Qxf3 {[%clk 0:02:38.4]} 9... O-O {[%clk 0:02:42.9]}
10. Qe3 {[%clk 0:02:35.1]} 10... Ne5 {[%clk 0:02:32.2]} 11. Bxe5 {[%clk
0:02:31.6]} 11... dxe5 {[%clk 0:02:32]} 12. Qxc5 {[%clk 0:02:31.4]} 12... Ne8
{[%clk 0:02:31.6]} 13. Be2 {[%clk 0:02:23.8]} 13... f5 {[%clk 0:02:31]} 14. O-O
{[%clk 0:02:18.9]} 14... Nd6 {[%clk 0:02:30.2]} 15. exf5 {[%clk 0:02:14.1]}
15... gxf5 {[%clk 0:02:28.3]} 16. Rfe1 {[%clk 0:02:03.4]} 16... b6 {[%clk
0:02:22.1]} 17. Qe3 {[%clk 0:01:59.7]} 17... Rc8 {[%clk 0:02:21.6]} 18. b3
{[%clk 0:01:42]} 18... Qe8 {[%clk 0:02:21.2]} 19. Rad1 {[%clk 0:01:36.5]} 19...
Qg6 {[%clk 0:02:20]} 20. f3 {[%clk 0:01:17.5]} 20... e4 {[%clk 0:02:13.7]} 21.
f4 {[%clk 0:01:16]} 21... b5 {[%clk 0:02:02.7]} 22. c5 {[%clk 0:01:13.1]} 22...
b4 {[%clk 0:02:02.4]} 23. Nb5 {[%clk 0:01:06.5]} 23... Nxb5 {[%clk 0:01:54.9]}
24. Bxb5 {[%clk 0:01:06.4]} 24... Rfd8 {[%clk 0:01:53.8]} 25. c6 {[%clk
0:01:02.7]} 25... a5 {[%clk 0:01:40.1]} 26. Re2 {[%clk 0:00:56.9]} 26... Qd6
{[%clk 0:01:33.4]} 27. Rc2 {[%clk 0:00:50.1]} 27... Bh6 {[%clk 0:01:27.9]} 28.
g3 {[%clk 0:00:49.7]} 28... Kh8 {[%clk 0:01:27.6]} 29. Qd4+ {[%clk 0:00:47.9]}
29... Bg7 {[%clk 0:01:27.2]} 30. Qf2 {[%clk 0:00:44.1]} 30... Rg8 {[%clk
0:01:25.3]} 31. Kh2 {[%clk 0:00:43.1]} 31... Bh6 {[%clk 0:01:21.7]} 32. Qc5
{[%clk 0:00:38.5]} 32... Bxf4 {[%clk 0:01:06.7]} 33. Qxd6 {[%clk 0:00:29.2]}
33... Bxd6 {[%clk 0:01:06]} 34. Rg2 {[%clk 0:00:28.8]} 34... h5 {[%clk
0:01:01.8]} 35. Rf1 {[%clk 0:00:28.1]} 35... h4 {[%clk 0:01:00.1]} 36. Rxf5
{[%clk 0:00:27.6]} 36... hxg3+ {[%clk 0:00:59.3]} 37. Kg1 {[%clk 0:00:27.3]}
37... Rcf8 {[%clk 0:00:47]} 38. Rxf8 {[%clk 0:00:27.2]} 38... Rxf8 {[%clk
0:00:46.7]} 39. Re2 {[%clk 0:00:28.1]} 39... e3 {[%clk 0:00:28.3]} 40. Kg2
{[%clk 0:00:28.1]} 40... Rf2+ {[%clk 0:00:27.5]} 41. Rxf2 {[%clk 0:00:28]} 41...
gxf2 {[%clk 0:00:27.4]} 42. Kf3 {[%clk 0:00:25.7]} 42... Bc7 {[%clk 0:00:22.3]}
43. Kxe3 {[%clk 0:00:25.6]} 43... Bb6+ {[%clk 0:00:22.8]} 44. Ke4 {[%clk
0:00:25.9]} 44... Kg7 {[%clk 0:00:22.9]} 45. Ke5 {[%clk 0:00:24.3]} 45... Kf7
{[%clk 0:00:22.9]} 46. d6 {[%clk 0:00:24.6]} 46... exd6+ {[%clk 0:00:19.5]} 47.
Kxd6 {[%clk 0:00:24.9]} 1-0

[Event "*** SCC Grand Prix: Titled Tuesday Blitz"]
[Site "Chess.com"]
[Date "2020.07.07"]
[Round "4"]
[White "Shuvalov"]
[Black "bascheyaro"]
[Result "0-1"]
[WhiteElo "2514"]
[BlackElo "2698"]
[TimeControl "180+1"]
[EndTime "10:40:43 PDT"]
[Termination "bascheyaro won by resignation"]

1. Nf3 {[%clk 0:03:00.9]} 1... d5 {[%clk 0:03:00.1]} 2. c4 {[%clk 0:02:56.7]}
2... c6 {[%clk 0:03:00]} 3. g3 {[%clk 0:02:55.9]} 3... Nf6 {[%clk 0:03:00.4]} 4.
Bg2 {[%clk 0:02:55.6]} 4... Bf5 {[%clk 0:03:00.6]} 5. cxd5 {[%clk 0:02:55.1]}
5... cxd5 {[%clk 0:03:00.4]} 6. Qb3 {[%clk 0:02:54.9]} 6... Qc8 {[%clk
0:03:00.5]} 7. Nc3 {[%clk 0:02:53.4]} 7... e6 {[%clk 0:03:00.4]} 8. d3 {[%clk
0:02:53.3]} 8... Nc6 {[%clk 0:03:00.5]} 9. Bf4 {[%clk 0:02:50.4]} 9... Be7
{[%clk 0:03:00.8]} 10. O-O {[%clk 0:02:48]} 10... O-O {[%clk 0:03:01]} 11. Rac1
{[%clk 0:02:48.1]} 11... Qd7 {[%clk 0:03:00.2]} 12. e4 {[%clk 0:02:42.6]} 12...
dxe4 {[%clk 0:02:04]} 13. dxe4 {[%clk 0:02:41.6]} 13... Nxe4 {[%clk 0:02:04.2]}
14. Nxe4 {[%clk 0:02:04.6]} 14... Bxe4 {[%clk 0:02:03.9]} 15. Ne5 {[%clk
0:02:04.9]} 15... Nxe5 {[%clk 0:02:00]} 16. Bxe4 {[%clk 0:02:04.1]} 16... Nc6
{[%clk 0:02:00.1]} 17. Rfd1 {[%clk 0:02:03.1]} 17... Qc8 {[%clk 0:02:00.3]} 18.
Qc2 {[%clk 0:01:48.7]} 18... g6 {[%clk 0:01:48]} 19. Bxc6 {[%clk 0:01:45.8]}
19... bxc6 {[%clk 0:01:48]} 20. Qxc6 {[%clk 0:01:46.7]} 20... Qxc6 {[%clk
0:01:45.5]} 21. Rxc6 {[%clk 0:01:47.6]} 21... Bf6 {[%clk 0:01:46.1]} 22. b4
{[%clk 0:01:44.2]} 22... a6 {[%clk 0:01:21.5]} 23. Rdd6 {[%clk 0:01:31.9]} 23...
Be7 {[%clk 0:01:20.2]} 24. Rd7 {[%clk 0:01:31.2]} 24... Bxb4 {[%clk 0:01:19.9]}
25. Rcc7 {[%clk 0:01:22.4]} 25... Rad8 {[%clk 0:01:07.8]} 26. Rxd8 {[%clk
0:01:17]} 26... Rxd8 {[%clk 0:01:07.5]} 27. Ra7 {[%clk 0:01:17.9]} 27... a5
{[%clk 0:01:02.3]} 28. Bh6 {[%clk 0:01:09.1]} 28... e5 {[%clk 0:00:58.2]} 29. a4
{[%clk 0:01:06.6]} 29... e4 {[%clk 0:00:53]} 30. Kf1 {[%clk 0:01:05.5]} 30...
Rd1+ {[%clk 0:00:50.8]} 31. Kg2 {[%clk 0:01:02.9]} 31... Rd8 {[%clk 0:00:50.2]}
32. Kf1 {[%clk 0:01:01.1]} 32... Bc3 {[%clk 0:00:27]} 33. Ke2 {[%clk 0:00:52.6]}
33... Bg7 {[%clk 0:00:26.3]} 34. Bxg7 {[%clk 0:00:49.9]} 34... Kxg7 {[%clk
0:00:27.2]} 35. Rxa5 {[%clk 0:00:50.2]} 35... Rd4 {[%clk 0:00:26.8]} 36. Ke3
{[%clk 0:00:49.5]} 36... Rb4 {[%clk 0:00:26.9]} 37. g4 {[%clk 0:00:49.3]} 37...
h6 {[%clk 0:00:22.9]} 38. h4 {[%clk 0:00:48.6]} 38... Rc4 {[%clk 0:00:20.4]} 39.
Kf4 {[%clk 0:00:46.1]} 39... Rb4 {[%clk 0:00:18.8]} 40. Ra7 {[%clk 0:00:45]}
40... e3+ {[%clk 0:00:18.2]} 41. Kxe3 {[%clk 0:00:44]} 41... Rxg4 {[%clk
0:00:18.4]} 42. a5 {[%clk 0:00:42.7]} 42... Rxh4 {[%clk 0:00:18.8]} 43. a6
{[%clk 0:00:42.9]} 43... Ra4 {[%clk 0:00:18.9]} 44. Ra8 {[%clk 0:00:41.3]} 44...
h5 {[%clk 0:00:19.4]} 45. a7 {[%clk 0:00:40.2]} 45... h4 {[%clk 0:00:19.7]} 46.
Kf3 {[%clk 0:00:40.5]} 46... f5 {[%clk 0:00:18.5]} 47. Kg2 {[%clk 0:00:39.8]}
47... g5 {[%clk 0:00:18.7]} 48. Kh2 {[%clk 0:00:38.9]} 48... Ra3 {[%clk
0:00:18.8]} 49. Kg2 {[%clk 0:00:38.8]} 49... g4 {[%clk 0:00:19.2]} 50. Kh2
{[%clk 0:00:38.9]} 50... h3 {[%clk 0:00:19.8]} 51. Kg1 {[%clk 0:00:32.5]} 51...
Ra2 {[%clk 0:00:20.1]} 52. Kh1 {[%clk 0:00:30]} 52... f4 {[%clk 0:00:17.9]} 53.
Kg1 {[%clk 0:00:26.4]} 53... g3 {[%clk 0:00:17.5]} 54. fxg3 {[%clk 0:00:20]}
54... fxg3 {[%clk 0:00:18.4]} 55. Kf1 {[%clk 0:00:20.3]} 55... h2 {[%clk
0:00:18]} 56. Rh8 {[%clk 0:00:17]} 56... Kxh8 {[%clk 0:00:17.6]} 57. a8=Q+
{[%clk 0:00:16.7]} 57... Rxa8 {[%clk 0:00:17.5]} 58. Kg2 {[%clk 0:00:17.6]}
58... Ra1 {[%clk 0:00:16.8]} 59. Kxg3 {[%clk 0:00:17.2]} 59... h1=Q {[%clk
0:00:17.1]} 0-1